[Event "45th FIDE Olympiad 2024"]
[Site "Budapest"]
[Date "2024.09.11"]
[Round "1.18"]
[White "Cabralis, Quinn"]
[Black "Yakubboev, Nodirbek"]
[Result "1/2-1/2"]
[ECO "B90"]
[WhiteElo "2169"]
[BlackElo "2666"]
[Annotator "TA"]
[PlyCount "73"]
[EventDate "2024.09.05"]
[EventType "team-tourn"]
[EventCountry "HUN"]
[SourceTitle "playchess.com"]
[Source "ChessBase"]
[SourceQuality "1"]
[WhiteTeam "Trinidad & Tobago"]
[BlackTeam "Uzbekistan"]
[BlackTeamCountry "UZB"]
[TimeControl "40/5400+30:1800+30"]

{[%evp 11,73,9,-26,-19,-27,-25,-25,0,-21,-16,64,73,85,80,97,97,102,94,94,86,75,69,227,229,242,56,89,77,72,80,82,85,147,157,510,527,649,653,614,643,643,645,721,814,753,784,806,766,704,604,591,587,523,365,537,554,558,330,339,0,568,0,300,0]} 1. e4 {[%emt 0:00:08]} c5 {[%emt 0:00:45]} 2. Nf3 {[%emt 0:00:23]} d6 {[%emt 0:00:18]} 3. d4 {[%emt 0:00:21]} cxd4 {[%emt 0:00:32]} 4. Nxd4 {[%emt 0:00:38]} Nf6 {[%emt 0:00:24]} 5. Nc3 {[%emt 0:00:13]} a6 {[%emt 0:00:06]} 6. Rg1 {[%emt 0:00:26]} b5 {[%emt 0:05:53]} 7. a4 {[%emt 0:01:07]} b4 {[%emt 0:00:05]} 8. Nd5 {[%emt 0:00:49]} Nxe4 {[%emt 0:00:45]} 9. Bc4 {[%emt 0:01:08][%cal Od1f3] Black has an edge.} e6 {[%emt 0:06:22]} 10. Qe2 {[%emt 0:01:50]} Nf6 {[%emt 0:15:46]} (10... exd5 11. Bxd5 Ra7 12. Bxe4) (10... Nc5 $1 $11) 11. Bg5 $14 {[%emt 0:03:21] White has more active pieces.} Be7 {[%emt 0:04:48]} 12. Nxe7 {[%emt 0:04:01]} (12. Nxb4 d5 13. Nbc6 Nxc6 14. Nxc6 Qb6 15. Nxe7 Qxb2 $17) 12... Qxe7 {[%emt 0:01:02]} 13. O-O-O {[%emt 0:03:45]} h6 {[%emt 0:07:11]} 14. Bh4 {[%emt 0:05:33] A strong pair of Bishops.} Ra7 {[%emt 0:15:59]} 15. f4 {[%emt 0:10:39][%cal Bf2f4,Bf4f5,Bf5f6,Bf6g7][%mdl 32]} Rc7 {[%emt 0:07:54]} 16. Rge1 {[%emt 0:04:52] aiming for g4.} d5 $2 {[%emt 0:05:01] [#]} ({Black should play} 16... Nc6 $1 $14) 17. Bxd5 $1 $18 {[%emt 0:09:29][%cal Od4f5][%mdl 512] Hoping for Nf5!} Qd6 {[%emt 0:04:13] [#]} (17... exd5 $2 18. Qd3 Be6 19. f5 $18) (17... O-O 18. Nf5) 18. Bg3 $2 {[%emt 0:34:05]} Nxd5 {[%emt 0:07:45][%cal Bf6d5,Bd5c7,Bc7e6,Be6g7][%mdl 32]} 19. f5 $36 {[%emt 0:00:42][%mdl 2048] White is on the roll.} Qe7 {[%emt 0:07:27]} 20. Bxc7 {[%emt 0:03:06]} Nxc7 {[%emt 0:00:42]} 21. Qc4 $1 {[%emt 0:00:26][%cal Of5f6] Strongly threatening f6!} (21. fxe6 Nxe6 22. Qe5 Qg5+ 23. Rd2 O-O 24. Qxb8 Nxd4 25. Qxb4 Rd8 $11) 21... O-O {[%emt 0:03:49] [#]} (21... e5 $142) 22. f6 $1 $16 {[%emt 0:00:53]} Qd8 {[%emt 0:01:10] [#]} (22... gxf6 $2 23. Nf5 exf5 24. Rxe7 $18) (22... Qxf6 $16 {is a better chance.} 23. Qxc7 Bd7) 23. fxg7 $1 $18 {[%emt 0:03:14]} (23. Qxb4 Bd7 24. fxg7 Re8 $16) ({Weaker is} 23. Nc6 Qxf6 24. Nxb8 Nd5 $16) 23... Re8 {[%emt 0:00:01] [#]} 24. Nxe6 $1 {[%emt 0:02:46][%mdl 512]} Qxd1+ {[%emt 0:00:09]} 25. Kxd1 {[%emt 0:02:07]} Nxe6 {[%emt 0:00:10]} 26. Qh4 {[%emt 0:00:46]} h5 {[%emt 0:02:51]} 27. Qxh5 {[%emt 0:02:39][%csl Gg7][%cal Rh5h8]} Rd8+ {[%emt 0:00:04]} 28. Kc1 {[%emt 0:00:15][%csl Gg7][%cal Rh5h8]} Nxg7 {[%emt 0:00:04]} 29. Qg5 {[%emt 0:00:33]} Nc6 {[%emt 0:00:54]} 30. Re3 {[%emt 0:02:41] Rg3 would now be deadly.} Bf5 {[%emt 0:01:05]} 31. Rg3 {[%emt 0:00:13][%csl Gg3][%cal Rg5g7]} Bg6 {[%emt 0:00:06]} 32. h4 {[%emt 0:01:06][%cal Bh2h4,Bh4h5][%mdl 32]} Re8 {[%emt 0:01:50]} (32... Ne6 $142 33. Qf6 Ned4) 33. h5 {[%emt 0:00:56]} Re5 {[%emt 0:00:58]} 34. Qf6 {[%emt 0:01:11]} Re6 {[%emt 0:00:10]} 35. Qg5 {[%emt 0:00:33]} (35. Qf3 Nd4 36. Qa8+ Re8 37. Qxa6 Bxh5 38. Kb1) 35... Re5 $1 {[%emt 0:00:16]} 36. Qf6 {[%emt 0:00:24]} Re6 {[%emt 0:00:01]} 37. Qg5 $2 {[%emt 0:00:58] Weighted Error Value: White=0.69/Black=0.36.  Loses game:     	---       	Black=1      Missed win:     	White=2     	---        Mistake:       	White=1     	Black=4      Inaccurate:     	White=3     	Black=1      OK:         	White=7     	Black=8      Best:        	White=3     	Black=1      Strong:       	White=3     	Black=1      Brilliant:      	White=2     	---} (37. Qf3 $18 Nd4 38. Qa8+ Re8 39. Qxa6 Nxh5 40. Rxg6+ fxg6 41. Qxg6+ Ng7 42. Qb6) 1/2-1/2

[Event "45th FIDE Olympiad 2024"]
[Site "Budapest"]
[Date "2024.09.11"]
[Round "1.19"]
[White "Vokhidov, Shamsiddin"]
[Black "Cupid, Kevin"]
[Result "1-0"]
[ECO "B12"]
[WhiteElo "2650"]
[BlackElo "2201"]
[Annotator "TA"]
[PlyCount "85"]
[EventDate "2024.09.05"]
[EventType "team-tourn"]
[EventCountry "HUN"]
[SourceTitle "playchess.com"]
[Source "ChessBase"]
[SourceQuality "1"]
[WhiteTeam "Uzbekistan"]
[BlackTeam "Trinidad & Tobago"]
[WhiteTeamCountry "UZB"]
[TimeControl "40/5400+30:1800+30"]

{[%evp 9,85,0,4,10,18,7,18,0,4,0,-7,-6,0,-1,-2,-12,0,0,-4,-14,-29,-73,-64,-122,-108,-111,127,120,241,232,317,338,312,191,198,186,179,198,188,187,176,186,184,161,265,278,302,303,339,336,481,486,491,485,647,584,795,806,818,774,822,863,1062,1004,1083,1137,1146,1078,989,983,1169,1152,1126,977,884,855,1254,870]} 1. e4 {[%emt 0:00:03][%cal Be2e4,Be4e5][%mdl 32]} c6 {[%emt 0:00:00]} 2. d4 {[%emt 0:00:05]} d5 {[%emt 0:00:01]} 3. e5 {[%emt 0:00:05]} Bf5 {[%emt 0:00:08]} 4. h4 {[%emt 0:00:04]} h5 {[%emt 0:00:14]} 5. Bd3 {[%emt 0:00:06]} Bxd3 {[%emt 0:00:02]} 6. Qxd3 {[%emt 0:00:04][%cal Oe5e6]} Qa5+ {[%emt 0:00:07]} 7. Nd2 {[%emt 0:00:09][%cal Oe5e6] And now e6! would win.} e6 {[%emt 0:00:10]} 8. Ngf3 {[%emt 0:00:05] The position is equal.} Qa6 {[%emt 0:00:24]} 9. c4 {[%emt 0:00:23]} Nh6 {[%emt 0:01:19]} 10. O-O {[%emt 0:00:30]} Nf5 {[%emt 0:00:20]} 11. Rd1 {[%emt 0:08:34]} Be7 {[%emt 0:03:36]} 12. g3 {[%emt 0:00:23]} c5 {[%emt 0:03:20]} 13. dxc5 {[%emt 0:03:08] Threatens to win with b4.} Nc6 {[%emt 0:00:06]} 14. b4 {[%emt 0:39:53]} Nxb4 {[%emt 0:14:33]} 15. Qc3 {[%emt 0:06:28]} Bxc5 {[%emt 0:44:02]} (15... Nxa2 $2 16. Qc2 Nb4 17. Qb1 $18) (15... Qa4 {simplifies} 16. Qb3 Qxb3 17. axb3 O-O) 16. Nb3 {[%emt 0:03:09]} (16. Ba3 $1 $15 Qb6 (16... Nxg3 17. Qb3 $11) 17. Bxb4 Bxb4 18. Qb3 Bxd2 (18... Nxg3 19. cxd5 exd5 20. Qd3 $17) 19. Qxb6 axb6 20. Nxd2) 16... Nxg3 $17 {[%emt 0:04:18]} (16... Nxa2 17. Qb2 (17. Nxc5 $2 Nxc3 18. Nxa6 Nxd1 $19) 17... Qxc4 18. Qxa2 $14 (18. Rxa2 b6 $16)) 17. Re1 {[%emt 0:00:02] [#] Against Ne2+} Ne4 {[%emt 0:15:54]} (17... Nxa2 18. Qb2 (18. Nxc5 Ne2+ 19. Rxe2 Nxc3 $11) 18... Ne4 19. Be3 (19. Rxa2 Qxc4 20. Be3 Bxe3 $11) (19. Rxe4 dxe4 20. Rxa2 Qxc4 $11) 19... Bxe3 20. Rxe3 $14) (17... Qb6 $1 $17 18. Nxc5 Qxc5) 18. Rxe4 $1 $16 {[%emt 0:02:10]} dxe4 {[%emt 0:00:28] A mistake that costs the game.} (18... Bxf2+ $16 {was called for.} 19. Kxf2 dxe4 20. Qxb4 exf3) 19. Nxc5 $18 {[%emt 0:00:08]} Qc6 {[%emt 0:00:10] Black is weak on the dark squares} 20. Qxb4 {[%emt 0:00:53] Strongly threatening Nd4.} b6 {[%emt 0:02:39]} 21. Ng5 {[%emt 0:08:23]} bxc5 {[%emt 0:00:40]} 22. Qb5 {[%emt 0:00:04]} Rc8 {[%emt 0:04:00]} 23. Nxe4 {[%emt 0:00:09] [#] aiming for Nd6+.} O-O {[%emt 0:00:04]} 24. Qxc6 {[%emt 0:00:06]} Rxc6 {[%emt 0:00:01]} 25. Be3 {[%emt 0:00:14]} Rfc8 {[%emt 0:00:12]} 26. a4 {[%emt 0:01:29][%cal Ba2a4,Ba4a5][%mdl 32]} Ra6 {[%emt 0:01:46]} (26... Rb8 $142 27. Nd2 (27. Bxc5 Rbc8 $16) 27... Rb2) 27. a5 {[%emt 0:01:00]} (27. Nxc5 Rac6 $16) 27... Kh7 {[%emt 0:00:20]} 28. Kg2 {[%emt 0:01:09]} (28. Nxc5 $6 Rac6 $18) 28... Kg6 {[%emt 0:00:03]} 29. Kf3 {[%emt 0:00:54]} ({Don't take} 29. Bxc5 f5) (29. Nxc5 Rac6) 29... f5 {[%emt 0:01:47]} (29... Rac6 $142 30. Rg1+ Kh7 31. Ng5+ Kg8) 30. Nxc5 {[%emt 0:01:46] White is clearly winning.} Rac6 {[%emt 0:00:13]} 31. Nb7 {[%emt 0:00:23]} (31. Nd3 Kf7 32. c5 (32. Bxa7 Rxc4 33. Be3 Rxh4 $18) 32... Rb8) 31... a6 {[%emt 0:01:25]} 32. Nd6 {[%emt 0:00:24]} R8c7 {[%emt 0:01:01]} 33. Rb1 {[%emt 0:01:14]} f4 {[%emt 0:02:23]} 34. Rg1+ {[%emt 0:00:23]} Kh7 {[%emt 0:00:06]} 35. Kxf4 {[%emt 0:00:09]} Rxc4+ {[%emt 0:00:11]} 36. Nxc4 {[%emt 0:00:05]} Rxc4+ {[%emt 0:00:09][%mdl 4096] Endgame. KRB-KR} 37. Kg5 {[%emt 0:00:38]} Re4 {[%emt 0:00:20]} 38. Kxh5 {[%emt 0:00:26] Hoping for Rg5.} Rxe5+ {[%emt 0:00:38]} 39. Rg5 {[%emt 0:00:08]} Re4 {[%emt 0:01:13]} 40. Rc5 {[%emt 0:00:13]} Ra4 {[%emt 0:00:17]} 41. Kg5 {[%emt 0:30:14]} Ra1 {[%emt 0:30:58]} 42. Bd4 {[%emt 0:00:15]} Rg1+ {[%emt 0:00:14]} 43. Kf4 {[%emt 0:00:05] Weighted Error Value: White=0.14 (very precise) /Black=0.45.  Mistake:       	White=1     	Black=4      Inaccurate:     	White=2     	Black=3      OK:         	White=11    	Black=12     Best:        	White=1     	Black=1      Strong:       	White=1     	---} 1-0

[Event "45th FIDE Olympiad 2024"]
[Site "Budapest"]
[Date "2024.09.11"]
[Round "1.19"]
[White "Al Qassabi, Mohammed"]
[Black "Abdulla, Murad"]
[Result "0-1"]
[ECO "B32"]
[WhiteElo "1521"]
[BlackElo "2312"]
[Annotator "ChessBase"]
[PlyCount "45"]
[EventDate "2024.09.05"]
[EventType "team-tourn"]
[EventCountry "HUN"]
[SourceTitle "playchess.com"]
[Source "ChessBase"]
[SourceQuality "1"]
[WhiteTeam "Qatar"]
[BlackTeam "Scotland"]
[WhiteTeamCountry "QAT"]
[BlackTeamCountry "SCO"]
[TimeControl "40/5400+30:1800+30"]

1. e4 c5 2. Nf3 Nc6 3. d4 cxd4 4. Nxd4 Qb6 5. Nxc6 bxc6 6. Bc4 Nf6 7. Nc3 e5 8. O-O Be7 9. Bb3 O-O 10. Be3 Qa5 11. Qd2 Bb4 12. Qd3 Ba6 13. Bc4 Bxc4 14. Qxc4 d5 15. Qe2 d4 16. Bg5 dxc3 17. Bxf6 gxf6 18. Qg4+ Kh8 19. Qf5 Be7 20. Rae1 cxb2 21. Re3 Rg8 22. Rh3 Rg7 23. Rb3 0-1

[Event "45th FIDE Olympiad 2024"]
[Site "Budapest"]
[Date "2024.09.11"]
[Round "1.20"]
[White "Gourlay, Iain"]
[Black "Al-Kuwari, Turki"]
[Result "1-0"]
[ECO "A37"]
[WhiteElo "2296"]
[BlackElo "1577"]
[Annotator "ChessBase"]
[PlyCount "69"]
[EventDate "2024.09.05"]
[EventType "team-tourn"]
[EventCountry "HUN"]
[SourceTitle "playchess.com"]
[Source "ChessBase"]
[SourceQuality "1"]
[WhiteTeam "Scotland"]
[BlackTeam "Qatar"]
[WhiteTeamCountry "SCO"]
[BlackTeamCountry "QAT"]
[TimeControl "40/5400+30:1800+30"]

1. Nf3 c5 2. g3 Nc6 3. Bg2 g6 4. c4 Bg7 5. Nc3 e6 6. h4 Nge7 7. h5 d5 8. h6 Bxc3 9. bxc3 dxc4 10. Qa4 Qd6 11. Qxc4 b6 12. d4 cxd4 13. Nxd4 Nxd4 14. cxd4 Nd5 15. Bf4 Qd7 16. Be5 O-O 17. e4 Ne7 18. O-O Bb7 19. Rfd1 Rac8 20. Qb3 Rfd8 21. Qe3 f5 22. Qg5 Rf8 23. Rac1 fxe4 24. Rxc8 Nxc8 25. Rc1 Nd6 26. Bh3 b5 27. Bg7 Rc8 28. Rxc8+ Qxc8 29. Qe7 Nf5 30. Bxf5 exf5 31. Kh2 Bd5 32. Qd6 Qa8 33. Be5 Qc6 34. Qe7 Bf7 35. Bd6 1-0

[Event "45th FIDE Olympiad 2024"]
[Site "Budapest"]
[Date "2024.09.11"]
[Round "1.20"]
[White "Harper, Ryan"]
[Black "Vakhidov, Jakhongir"]
[Result "0-1"]
[ECO "B36"]
[WhiteElo "2124"]
[BlackElo "2571"]
[Annotator "TA"]
[PlyCount "110"]
[EventDate "2024.09.05"]
[EventType "team-tourn"]
[EventCountry "HUN"]
[SourceTitle "playchess.com"]
[Source "ChessBase"]
[SourceQuality "1"]
[WhiteTeam "Trinidad & Tobago"]
[BlackTeam "Uzbekistan"]
[BlackTeamCountry "UZB"]
[TimeControl "40/5400+30:1800+30"]

{[%evp 19,110,47,45,18,19,8,15,14,11,-3,30,21,39,0,60,54,60,58,68,76,92,88,86,82,82,76,86,60,65,56,61,67,127,124,111,42,50,24,24,26,54,11,24,0,31,0,0,-49,-43,-47,-48,-56,-56,-86,-90,-91,-97,-104,-87,-84,-67,-66,-81,-98,-86,-185,-185,-200,-200,-179,-179,-387,-376,-361,-361,-5501,-3557,-5485,-4133,-29953,-29950,-29952,-29956,-29960,-29961,-29964,-29965,-29964,-29962,-29965,-29966,-6431,-6015]} 1. e4 {[%emt 0:00:03]} c5 {[%emt 0:00:26]} 2. Nf3 {[%emt 0:00:22]} Nc6 {[%emt 0:00:26]} 3. d4 {[%emt 0:01:09]} cxd4 {[%emt 0:00:17]} 4. Nxd4 {[%emt 0:00:04]} g6 {[%emt 0:00:27]} 5. c4 {[%emt 0:00:24]} Nf6 {[%emt 0:00:32]} 6. Nc3 {[%emt 0:00:29]} d6 {[%emt 0:00:20]} 7. Be2 {[%emt 0:00:54]} Nxd4 {[%emt 0:00:58]} 8. Qxd4 {[%emt 0:00:08]} Bg7 {[%emt 0:00:09]} 9. O-O {[%emt 0:04:40]} O-O {[%emt 0:00:13]} 10. Qd3 {[%emt 0:00:36]} a6 {[%emt 0:03:01]} 11. f3 {[%emt 0:12:27]} Bd7 {[%emt 0:08:58]} 12. Be3 {[%emt 0:01:20]} b5 {[%emt 0:32:09]} 13. cxb5 {[%emt 0:35:18] The position is equal.} axb5 {[%emt 0:02:51]} 14. a3 {[%emt 0:03:35][%cal Of1d1]} Rb8 {[%emt 0:07:47]} 15. b4 {[%emt 0:03:12][%cal Bb2b4,Bb4b5][%mdl 32]} Qc7 {[%emt 0:09:16]} 16. Bd4 {[%emt 0:04:31]} Bc6 {[%emt 0:08:21]} (16... Rfc8 $11 17. Rac1 Ra8) 17. Rfc1 $14 {[%emt 0:01:58][%cal Oc3d5] Nd5! is the strong threat.} Qd8 {[%emt 0:13:47]} 18. a4 {[%emt 0:02:01]} bxa4 {[%emt 0:04:12]} 19. b5 {[%emt 0:00:05]} Bd7 {[%emt 0:03:20]} 20. Rxa4 {[%emt 0:00:18]} Nh5 {[%emt 0:00:24][%cal Bf6h5,Bh5g7,Bg7e6,Be6c5][%mdl 32]} 21. g3 {[%emt 0:13:52] Prevents Nf4.} Bxd4+ {[%emt 0:00:52]} 22. Qxd4 {[%emt 0:02:30]} Ng7 {[%emt 0:00:02]} 23. Rb1 {[%emt 0:01:24]} Ne6 {[%emt 0:00:35]} 24. Qe3 {[%emt 0:00:13]} Nc5 {[%emt 0:00:53]} 25. Rab4 {[%emt 0:00:41]} Be6 {[%emt 0:00:59]} (25... e5 $14) 26. b6 $16 {[%emt 0:00:32]} Qc8 {[%emt 0:00:12]} 27. R1b2 {[%emt 0:05:40]} (27. f4 $16) 27... Qc6 $14 {[%emt 0:00:24]} 28. Qd4 {[%emt 0:02:51]} Rfc8 {[%emt 0:01:14]} 29. Kf2 {[%emt 0:01:25]} Qb7 {[%emt 0:00:47]} 30. Na4 {[%emt 0:00:26]} (30. g4 {is interesting.} Ra8 31. Bc4 Ra3 32. Nb5) 30... Ra8 {[%emt 0:00:22]} 31. Nc3 {[%emt 0:00:34]} Ra3 {[%emt 0:00:16][%cal Oa3c3] And now ...Rxc3! would win.} 32. Nd5 {[%emt 0:00:17]} Bxd5 {[%emt 0:00:31]} 33. Qxd5 {[%emt 0:00:18]} (33. exd5 $11 Rca8 34. Qd2) 33... Qxd5 $15 {[%emt 0:00:13]} 34. exd5 {[%emt 0:00:06]} Rb8 {[%emt 0:00:09]} 35. Bc4 {[%emt 0:00:50]} Kg7 {[%emt 0:00:11]} 36. Ke2 {[%emt 0:00:18]} Na4 {[%emt 0:00:40] Black is more active.} 37. R2b3 {[%emt 0:02:43]} Rxb3 {[%emt 0:00:07]} 38. Bxb3 {[%emt 0:00:18]} Nxb6 $17 {[%emt 0:00:53][%mdl 4096] Endgame. KRB-KRN} 39. f4 {[%emt 0:00:28]} Nd7 {[%emt 0:00:56]} 40. Rxb8 {[%emt 0:00:04]} Nxb8 $15 {[%emt 0:00:04] KB-KN. Black keeps a firm grip on the game.} 41. Ke3 {[%emt 0:30:48]} Nd7 {[%emt 0:30:45]} 42. Kd4 {[%emt 0:00:38] [#]} (42. g4 $17) 42... f5 $1 $19 {[%emt 0:00:00]} 43. Bd1 {[%emt 0:00:00]} Nf6 {[%emt 0:00:00]} 44. Bf3 {[%emt 0:00:00]} Kh6 {[%emt 0:00:00]} 45. Be2 $2 {[%emt 0:00:00] [#]} (45. Bd1 {was the only chance.}) 45... Ng4 $1 {[%emt 0:00:00]} 46. h3 {[%emt 0:00:00]} Nf6 {[%emt 0:00:00]} 47. g4 $2 {[%emt 0:00:00]} (47. Bf3 Nh5 48. Kd3) 47... fxg4 {[%emt 0:00:00]} 48. hxg4 {[%emt 0:00:00]} g5 {[%emt 0:00:00]} 49. f5 {[%emt 0:00:00]} Kg7 {[%emt 0:00:00]} 50. Bd1 {[%emt 0:00:00] [#]} h5 $1 {[%emt 0:00:00][%mdl 512]} 51. gxh5 {[%emt 0:00:00]} Kh6 {[%emt 0:00:00]} 52. Be2 {[%emt 0:00:51]} g4 {[%emt 0:00:00]} 53. Ke3 {[%emt 0:03:14]} Kxh5 {[%emt 0:00:00]} 54. Kf4 {[%emt 0:00:23]} Nxd5+ {[%emt 0:00:00]} 55. Kg3 {[%emt 0:00:08]} Nf6 {[%emt 0:00:00] Weighted Error Value: White=0.48/Black=0.08 (flawless) .  Mistake:       	White=5     	Black=2      Inaccurate:     	White=6     	Black=3      OK:         	White=12    	Black=14     Best:        	White=1     	Black=1      Strong:       	---       	Black=2} 0-1

[Event "45th FIDE Olympiad 2024"]
[Site "Budapest"]
[Date "2024.09.11"]
[Round "1.21"]
[White "Tran, Thanh Tu"]
[Black "Misambo, .J. Kilasa"]
[Result "1-0"]
[ECO "A05"]
[WhiteElo "2387"]
[BlackElo "1959"]
[Annotator "ChessBase"]
[PlyCount "97"]
[EventDate "2024.09.05"]
[EventType "team-tourn"]
[EventCountry "HUN"]
[SourceTitle "playchess.com"]
[Source "ChessBase"]
[SourceQuality "1"]
[WhiteTeam "Japan"]
[BlackTeam "Tanzania"]
[WhiteTeamCountry "JPN"]
[BlackTeamCountry "TAN"]
[TimeControl "40/5400+30:1800+30"]

1. Nf3 Nf6 2. g3 b5 3. Bg2 Bb7 4. d3 e6 5. e4 d6 6. O-O Be7 7. b3 O-O 8. Bb2 Nbd7 9. Nbd2 c5 10. Qe2 a6 11. Nh4 Qb6 12. Kh1 Ne8 13. f4 Bf6 14. e5 Bxh4 15. gxh4 dxe5 16. fxe5 Qc7 17. a4 Rc8 18. axb5 axb5 19. Rf2 Nb6 20. Ne4 Nd5 21. Ra7 Rb8 22. Nd6 b4 23. Rxb7 Rxb7 24. Nxb7 Qxb7 25. Rf1 Qe7 26. Qf2 Nec7 27. d4 cxd4 28. Bxd4 Qd7 29. h5 h6 30. Rg1 Nb5 31. Bc5 Rc8 32. Bf3 Qc7 33. Qg3 f5 34. Bxd5 exd5 35. Be3 d4 36. Bd2 Qb7+ 37. Qg2 Qxg2+ 38. Rxg2 Rxc2 39. e6 Nc7 40. e7 Kf7 41. Kg1 Nd5 42. Rxg7+ Ke8 43. Bxh6 Nxe7 44. Bg5 Nd5 45. h6 Kf8 46. Rd7 Ne3 47. Bxe3 dxe3 48. h7 Ke8 49. Rg7 1-0